[Event "Titled Tuesday Blitz February 15 Early 2022"]
[White "Guseva, Marina"]
[Black "Sovetbekova, Nurai"]
[WhiteFideId "4149351"]
[BlackFideId "13801910"]
[WhiteElo "2232"]
[BlackElo "1545"]
[Result "1-0"]
[Round "08"]
[TimeControl "180+1"]
[Date "2022.02.15"]
[WhiteClock "0:00:12"]
[BlackClock "0:00:01"]

1. Nf3 {[%clk 0:02:59]}  Nf6 {[%clk 0:02:57]} 2. b3 {[%clk 0:02:57]}  g6 {[%clk 0:02:57]} 3. Bb2 {[%clk 0:02:56]}  Bg7 {[%clk 0:02:57]} 4. g3 {[%clk 0:02:54]}  O-O {[%clk 0:02:56]} 5. Bg2 {[%clk 0:02:53]}  d5 {[%clk 0:02:57]} 6. O-O {[%clk 0:02:53]}  c5 {[%clk 0:02:57]} 7. c4 {[%clk 0:02:52]}  d4 {[%clk 0:02:47]} 8. e3 {[%clk 0:02:50]}  dxe3 {[%clk 0:02:36]} 9. fxe3 {[%clk 0:02:36]}  Nc6 {[%clk 0:02:33]} 10. Qe2 {[%clk 0:02:31]}  Bf5 {[%clk 0:02:16]} 11. d4 {[%clk 0:02:30]}  Nb4 {[%clk 0:02:01]} 12. Ne1 {[%clk 0:02:13]}  Be4 {[%clk 0:01:41]} 13. a3 {[%clk 0:02:08]}  Nc6 {[%clk 0:01:33]} 14. d5 {[%clk 0:02:04]}  Bxg2 {[%clk 0:01:22]} 15. Nxg2 {[%clk 0:01:56]}  Na5 {[%clk 0:01:19]} 16. Nd2 {[%clk 0:01:49]}  e6 {[%clk 0:00:53]} 17. e4 {[%clk 0:01:48]}  exd5 {[%clk 0:00:46]} 18. exd5 {[%clk 0:01:44]}  Qb6 {[%clk 0:00:44]} 19. Qf3 {[%clk 0:01:25]}  Nh5 {[%clk 0:00:39]} 20. Rab1 {[%clk 0:01:17]}  Rae8 {[%clk 0:00:27]} 21. Bxg7 {[%clk 0:01:11]}  Nxg7 {[%clk 0:00:28]} 22. Ne4 {[%clk 0:01:09]}  Nf5 {[%clk 0:00:23]} 23. Kh1 {[%clk 0:00:57]}  Kg7 {[%clk 0:00:16]} 24. Qc3+ {[%clk 0:00:27]}  f6 {[%clk 0:00:13]} 25. Ng5 {[%clk 0:00:24]}  Kg8 {[%clk 0:00:10]} 26. Ne6 {[%clk 0:00:21]}  Rf7 {[%clk 0:00:10]} 27. b4 {[%clk 0:00:21]}  Nd4 {[%clk 0:00:08]} 28. bxa5 {[%clk 0:00:19]}  Qd6 {[%clk 0:00:07]} 29. Nxd4 {[%clk 0:00:19]}  cxd4 {[%clk 0:00:07]} 30. Qxd4 {[%clk 0:00:20]}  Qxa3 {[%clk 0:00:07]} 31. Nf4 {[%clk 0:00:17]}  Qa2 {[%clk 0:00:05]} 32. Rb2 {[%clk 0:00:15]}  Qxa5 {[%clk 0:00:04]} 33. Ne6 {[%clk 0:00:15]}  Qa3 {[%clk 0:00:02]} 34. Re2 {[%clk 0:00:13]}  Qd6 {[%clk 0:00:02]} 35. Rxf6 {[%clk 0:00:13]}  Rxf6 {[%clk 0:00:02]} 36. Qxf6 {[%clk 0:00:12]}  Rf8 {[%clk 0:00:01]} 37. Qg7# {[%clk 0:00:12]} 1-0


[Site "https://www.chess.com"]

[Event "Titled Tuesday Blitz February 15 Early 2022"]
[White "Hakobyan, Aram"]
[Black "Kopylov, Alexander A."]
[WhiteFideId "13306677"]
[BlackFideId "4164857"]
[WhiteElo "2557"]
[BlackElo "2436"]
[Result "1-0"]
[Round "08"]
[TimeControl "180+1"]
[Date "2022.02.15"]
[WhiteClock "0:02:01"]
[BlackClock "0:01:20"]

1. b4 {[%clk 0:03:00]}  b6 {[%clk 0:02:54]} 2. Bb2 {[%clk 0:02:59]}  Bb7 {[%clk 0:02:54]} 3. Nf3 {[%clk 0:02:59]}  Nf6 {[%clk 0:02:55]} 4. e3 {[%clk 0:02:57]}  g6 {[%clk 0:02:55]} 5. c4 {[%clk 0:02:53]}  Bg7 {[%clk 0:02:55]} 6. Be2 {[%clk 0:02:53]}  Kf8 {[%clk 0:02:56]} 7. O-O {[%clk 0:02:53]}  Kg8 {[%clk 0:02:56]} 8. d4 {[%clk 0:02:54]}  h6 {[%clk 0:02:56]} 9. Nc3 {[%clk 0:02:55]}  Kh7 {[%clk 0:02:56]} 10. Bd3 {[%clk 0:02:55]}  d6 {[%clk 0:02:55]} 11. e4 {[%clk 0:02:55]}  e6 {[%clk 0:02:42]} 12. e5 {[%clk 0:02:49]}  dxe5 {[%clk 0:02:39]} 13. Nxe5 {[%clk 0:02:36]}  Rf8 {[%clk 0:02:38]} 14. Qc2 {[%clk 0:02:36]}  Nbd7 {[%clk 0:02:37]} 15. Rad1 {[%clk 0:02:36]}  Qe8 {[%clk 0:02:31]} 16. Nb5 {[%clk 0:02:36]}  Qc8 {[%clk 0:02:18]} 17. Nxf7 {[%clk 0:02:26]}  Rxf7 {[%clk 0:02:17]} 18. Bxg6+ {[%clk 0:02:27]}  Kg8 {[%clk 0:02:17]} 19. Bxf7+ {[%clk 0:02:27]}  Kxf7 {[%clk 0:02:18]} 20. Rfe1 {[%clk 0:02:27]}  a6 {[%clk 0:02:14]} 21. d5 {[%clk 0:02:27]}  exd5 {[%clk 0:02:10]} 22. Nd4 {[%clk 0:02:28]}  Nf8 {[%clk 0:01:59]} 23. Nf5 {[%clk 0:02:25]}  Ng6 {[%clk 0:01:38]} 24. cxd5 {[%clk 0:02:11]}  Bf8 {[%clk 0:01:22]} 25. Bxf6 {[%clk 0:02:05]}  Kxf6 {[%clk 0:01:21]} 26. Re6+ {[%clk 0:02:06]}  Kf7 {[%clk 0:01:20]} 27. Nxh6+ {[%clk 0:02:01]} 1-0


[Site "https://www.chess.com"]

[Event "Titled Tuesday Blitz February 15 Early 2022"]
[White "Hamley, Ryan"]
[Black "Milanovic, Marko"]
[WhiteFideId "30959497"]
[BlackFideId "980129"]
[WhiteElo "2392"]
[BlackElo "1976"]
[Result "1-0"]
[Round "08"]
[TimeControl "180+1"]
[Date "2022.02.15"]
[WhiteClock "0:00:12"]
[BlackClock "0:00:13"]

1. e4 {[%clk 0:03:00]}  e5 {[%clk 0:02:58]} 2. Nf3 {[%clk 0:03:00]}  Nc6 {[%clk 0:02:58]} 3. Bb5 {[%clk 0:03:00]}  a6 {[%clk 0:02:58]} 4. Ba4 {[%clk 0:03:00]}  Nf6 {[%clk 0:02:58]} 5. O-O {[%clk 0:03:00]}  Be7 {[%clk 0:02:59]} 6. Re1 {[%clk 0:03:00]}  b5 {[%clk 0:03:00]} 7. Bb3 {[%clk 0:03:00]}  d6 {[%clk 0:03:00]} 8. c3 {[%clk 0:03:00]}  O-O {[%clk 0:03:01]} 9. h3 {[%clk 0:03:01]}  Nb8 {[%clk 0:03:02]} 10. d4 {[%clk 0:03:00]}  Nbd7 {[%clk 0:03:02]} 11. Nbd2 {[%clk 0:02:59]}  Bb7 {[%clk 0:03:03]} 12. Bc2 {[%clk 0:02:51]}  Re8 {[%clk 0:03:02]} 13. Nf1 {[%clk 0:02:50]}  Bf8 {[%clk 0:03:03]} 14. Ng3 {[%clk 0:02:50]}  g6 {[%clk 0:03:03]} 15. a4 {[%clk 0:02:39]}  c5 {[%clk 0:03:03]} 16. b3 {[%clk 0:02:26]}  Qc7 {[%clk 0:03:00]} 17. d5 {[%clk 0:02:23]}  Bg7 {[%clk 0:02:54]} 18. Be3 {[%clk 0:02:20]}  Reb8 {[%clk 0:02:41]} 19. Qd2 {[%clk 0:02:19]}  Bc8 {[%clk 0:02:41]} 20. Nh2 {[%clk 0:02:14]}  bxa4 {[%clk 0:02:29]} 21. Rxa4 {[%clk 0:02:12]}  Nb6 {[%clk 0:02:25]} 22. Ra3 {[%clk 0:02:07]}  a5 {[%clk 0:02:23]} 23. Rea1 {[%clk 0:02:06]}  a4 {[%clk 0:02:23]} 24. Qd1 {[%clk 0:01:50]}  axb3 {[%clk 0:02:15]} 25. Bxb3 {[%clk 0:01:50]}  h5 {[%clk 0:01:52]} 26. Rxa8 {[%clk 0:01:26]}  Rxa8 {[%clk 0:01:41]} 27. Rxa8 {[%clk 0:01:25]}  Nxa8 {[%clk 0:01:42]} 28. Qa1 {[%clk 0:01:26]}  Nb6 {[%clk 0:01:37]} 29. Bc2 {[%clk 0:01:19]}  Nc4 {[%clk 0:01:35]} 30. Bg5 {[%clk 0:01:16]}  Qb7 {[%clk 0:01:32]} 31. Bd3 {[%clk 0:01:07]}  Nb6 {[%clk 0:01:17]} 32. Nf3 {[%clk 0:01:00]}  Bd7 {[%clk 0:01:08]} 33. Qa5 {[%clk 0:00:53]}  Nh7 {[%clk 0:00:49]} 34. Bd8 {[%clk 0:00:35]}  Nc8 {[%clk 0:00:48]} 35. Qc7 {[%clk 0:00:35]}  Qxc7 {[%clk 0:00:42]} 36. Bxc7 {[%clk 0:00:36]}  Nf6 {[%clk 0:00:35]} 37. Nd2 {[%clk 0:00:33]}  Ne8 {[%clk 0:00:35]} 38. Bd8 {[%clk 0:00:33]}  f6 {[%clk 0:00:31]} 39. Ne2 {[%clk 0:00:23]}  Kf7 {[%clk 0:00:29]} 40. Kf1 {[%clk 0:00:21]}  Ne7 {[%clk 0:00:27]} 41. Nc4 {[%clk 0:00:19]}  f5 {[%clk 0:00:27]} 42. f3 {[%clk 0:00:19]}  Bf8 {[%clk 0:00:25]} 43. Nc1 {[%clk 0:00:16]}  Nc8 {[%clk 0:00:25]} 44. Ke2 {[%clk 0:00:16]}  Na7 {[%clk 0:00:24]} 45. Nb3 {[%clk 0:00:15]}  Nb5 {[%clk 0:00:23]} 46. Kd2 {[%clk 0:00:15]}  Bh6+ {[%clk 0:00:20]} 47. Kc2 {[%clk 0:00:14]}  Bf8 {[%clk 0:00:19]} 48. Nba5 {[%clk 0:00:14]}  fxe4 {[%clk 0:00:17]} 49. fxe4 {[%clk 0:00:14]}  Nf6 {[%clk 0:00:18]} 50. Nc6 {[%clk 0:00:13]}  Ne8 {[%clk 0:00:08]} 51. N6xe5+ {[%clk 0:00:09]}  Kg8 {[%clk 0:00:03]} 52. Nxd7 {[%clk 0:00:09]}  Bg7 {[%clk 0:00:04]} 53. e5 {[%clk 0:00:07]}  dxe5 {[%clk 0:00:04]} 54. Ndxe5 {[%clk 0:00:08]}  Ned6 {[%clk 0:00:04]} 55. Nxd6 {[%clk 0:00:08]}  Nxd6 {[%clk 0:00:05]} 56. Nc4 {[%clk 0:00:07]}  Nf5 {[%clk 0:00:04]} 57. Bxf5 {[%clk 0:00:07]}  gxf5 {[%clk 0:00:05]} 58. d6 {[%clk 0:00:07]}  Kf7 {[%clk 0:00:05]} 59. Be7 {[%clk 0:00:07]}  Ke6 {[%clk 0:00:05]} 60. Nb6 {[%clk 0:00:07]}  Be5 {[%clk 0:00:04]} 61. Kd3 {[%clk 0:00:07]}  Bxd6 {[%clk 0:00:03]} 62. Bxd6 {[%clk 0:00:07]}  Kxd6 {[%clk 0:00:04]} 63. Nc4+ {[%clk 0:00:07]}  Kd5 {[%clk 0:00:05]} 64. Ne3+ {[%clk 0:00:08]}  Ke5 {[%clk 0:00:05]} 65. Ke2 {[%clk 0:00:05]}  Ke4 {[%clk 0:00:05]} 66. Kf2 {[%clk 0:00:04]}  Kd3 {[%clk 0:00:05]} 67. Nxf5 {[%clk 0:00:04]}  Kxc3 {[%clk 0:00:06]} 68. Ne3 {[%clk 0:00:04]}  Kd3 {[%clk 0:00:06]} 69. Kf3 {[%clk 0:00:04]}  h4 {[%clk 0:00:05]} 70. Nf5 {[%clk 0:00:03]}  c4 {[%clk 0:00:05]} 71. Ne3 {[%clk 0:00:03]}  c3 {[%clk 0:00:05]} 72. Kf2 {[%clk 0:00:03]}  Kd2 {[%clk 0:00:04]} 73. Nc4+ {[%clk 0:00:03]}  Kd3 {[%clk 0:00:04]} 74. Na3 {[%clk 0:00:04]}  Kd2 {[%clk 0:00:03]} 75. Kf3 {[%clk 0:00:02]}  Kc1 {[%clk 0:00:03]} 76. Ke3 {[%clk 0:00:02]}  Kb2 {[%clk 0:00:03]} 77. Nc4+ {[%clk 0:00:03]}  Kb3 {[%clk 0:00:04]} 78. Nd2+ {[%clk 0:00:02]}  Kc2 {[%clk 0:00:03]} 79. Ne4 {[%clk 0:00:02]}  Kb2 {[%clk 0:00:02]} 80. Nxc3 {[%clk 0:00:02]}  Kxc3 {[%clk 0:00:02]} 81. Kf4 {[%clk 0:00:03]}  Kd3 {[%clk 0:00:03]} 82. Kg4 {[%clk 0:00:04]}  Ke3 {[%clk 0:00:04]} 83. Kxh4 {[%clk 0:00:05]}  Kf4 {[%clk 0:00:04]} 84. g4 {[%clk 0:00:06]}  Ke5 {[%clk 0:00:04]} 85. Kh5 {[%clk 0:00:07]}  Kf6 {[%clk 0:00:05]} 86. h4 {[%clk 0:00:07]}  Kg7 {[%clk 0:00:06]} 87. g5 {[%clk 0:00:08]}  Kh8 {[%clk 0:00:07]} 88. Kg4 {[%clk 0:00:09]}  Kg8 {[%clk 0:00:08]} 89. h5 {[%clk 0:00:10]}  Kh8 {[%clk 0:00:09]} 90. g6 {[%clk 0:00:11]}  Kg8 {[%clk 0:00:10]} 91. Kg5 {[%clk 0:00:12]}  Kh8 {[%clk 0:00:10]} 92. Kf6 {[%clk 0:00:12]}  Kg8 {[%clk 0:00:11]} 93. h6 {[%clk 0:00:12]}  Kh8 {[%clk 0:00:12]} 94. g7+ {[%clk 0:00:10]}  Kg8 {[%clk 0:00:13]} 95. h7+ {[%clk 0:00:11]}  Kxh7 {[%clk 0:00:13]} 96. Kf7 {[%clk 0:00:12]} 1-0


[Site "https://www.chess.com"]

[Event "Titled Tuesday Blitz February 15 Early 2022"]
[White "Dronavalli, Harika"]
[Black "Coto Mederos, Michel"]
[WhiteFideId "5015197"]
[BlackFideId "3508528"]
[WhiteElo "2382"]
[BlackElo "2427"]
[Result "1/2-1/2"]
[Round "08"]
[TimeControl "180+1"]
[Date "2022.02.15"]
[WhiteClock "0:00:18"]
[BlackClock "0:00:05"]

1. d4 {[%clk 0:03:00]}  d5 {[%clk 0:02:59]} 2. c4 {[%clk 0:03:00]}  e6 {[%clk 0:02:58]} 3. Nc3 {[%clk 0:03:00]}  Nf6 {[%clk 0:02:57]} 4. Bg5 {[%clk 0:02:59]}  Be7 {[%clk 0:02:56]} 5. e3 {[%clk 0:02:59]}  h6 {[%clk 0:02:56]} 6. Bh4 {[%clk 0:02:58]}  O-O {[%clk 0:02:56]} 7. Qc2 {[%clk 0:02:59]}  b6 {[%clk 0:02:45]} 8. Nf3 {[%clk 0:02:48]}  Bb7 {[%clk 0:02:43]} 9. Rd1 {[%clk 0:02:44]}  Ne4 {[%clk 0:02:10]} 10. Bxe7 {[%clk 0:02:38]}  Qxe7 {[%clk 0:02:11]} 11. a3 {[%clk 0:02:31]}  Nd7 {[%clk 0:01:56]} 12. Be2 {[%clk 0:02:26]}  c5 {[%clk 0:01:25]} 13. cxd5 {[%clk 0:01:56]}  Nxc3 {[%clk 0:01:19]} 14. bxc3 {[%clk 0:01:53]}  exd5 {[%clk 0:01:15]} 15. a4 {[%clk 0:01:51]}  Nf6 {[%clk 0:01:02]} 16. O-O {[%clk 0:01:49]}  Ne4 {[%clk 0:01:02]} 17. Bd3 {[%clk 0:01:47]}  Rac8 {[%clk 0:00:58]} 18. Qb2 {[%clk 0:01:38]}  f6 {[%clk 0:00:30]} 19. Bxe4 {[%clk 0:01:31]}  dxe4 {[%clk 0:00:29]} 20. Nd2 {[%clk 0:01:32]}  Ba6 {[%clk 0:00:25]} 21. Rfe1 {[%clk 0:01:31]}  Bd3 {[%clk 0:00:23]} 22. a5 {[%clk 0:01:27]}  b5 {[%clk 0:00:22]} 23. Nb3 {[%clk 0:01:16]}  c4 {[%clk 0:00:22]} 24. Nc5 {[%clk 0:01:16]}  Rxc5 {[%clk 0:00:22]} 25. dxc5 {[%clk 0:01:16]}  Qxc5 {[%clk 0:00:23]} 26. Qb4 {[%clk 0:01:08]}  Qxb4 {[%clk 0:00:22]} 27. cxb4 {[%clk 0:01:08]}  c3 {[%clk 0:00:20]} 28. f3 {[%clk 0:01:07]}  c2 {[%clk 0:00:19]} 29. Rd2 {[%clk 0:01:05]}  Rc8 {[%clk 0:00:18]} 30. Rc1 {[%clk 0:01:01]}  f5 {[%clk 0:00:15]} 31. g4 {[%clk 0:01:02]}  g6 {[%clk 0:00:15]} 32. Kf2 {[%clk 0:00:50]}  Rc4 {[%clk 0:00:14]} 33. gxf5 {[%clk 0:00:50]}  gxf5 {[%clk 0:00:15]} 34. fxe4 {[%clk 0:00:50]}  fxe4 {[%clk 0:00:14]} 35. h4 {[%clk 0:00:43]}  Rxb4 {[%clk 0:00:14]} 36. Rcxc2 {[%clk 0:00:43]}  Bxc2 {[%clk 0:00:14]} 37. Rxc2 {[%clk 0:00:43]}  Ra4 {[%clk 0:00:14]} 38. Rc7 {[%clk 0:00:41]}  Rxa5 {[%clk 0:00:08]} 39. Rb7 {[%clk 0:00:36]}  a6 {[%clk 0:00:07]} 40. Kg3 {[%clk 0:00:36]}  Ra2 {[%clk 0:00:07]} 41. Kf4 {[%clk 0:00:36]}  Rh2 {[%clk 0:00:07]} 42. Kxe4 {[%clk 0:00:36]}  Rxh4+ {[%clk 0:00:07]} 43. Kf5 {[%clk 0:00:36]}  Rh3 {[%clk 0:00:05]} 44. e4 {[%clk 0:00:36]}  Rg3 {[%clk 0:00:03]} 45. e5 {[%clk 0:00:36]}  h5 {[%clk 0:00:03]} 46. e6 {[%clk 0:00:36]}  Kf8 {[%clk 0:00:03]} 47. Ke5 {[%clk 0:00:25]}  Ke8 {[%clk 0:00:03]} 48. Rb8+ {[%clk 0:00:24]}  Ke7 {[%clk 0:00:03]} 49. Rb7+ {[%clk 0:00:25]}  Ke8 {[%clk 0:00:03]} 50. Rh7 {[%clk 0:00:25]}  Re3+ {[%clk 0:00:01]} 51. Kf5 {[%clk 0:00:25]}  Rf3+ {[%clk 0:00:02]} 52. Ke4 {[%clk 0:00:26]}  Rf1 {[%clk 0:00:02]} 53. Kd5 {[%clk 0:00:25]}  b4 {[%clk 0:00:02]} 54. Rh8+ {[%clk 0:00:24]}  Ke7 {[%clk 0:00:02]} 55. Rh7+ {[%clk 0:00:24]}  Ke8 {[%clk 0:00:02]} 56. Rxh5 {[%clk 0:00:22]}  b3 {[%clk 0:00:02]} 57. Rh8+ {[%clk 0:00:22]}  Ke7 {[%clk 0:00:03]} 58. Rh7+ {[%clk 0:00:22]}  Ke8 {[%clk 0:00:03]} 59. Rb7 {[%clk 0:00:23]}  Rf3 {[%clk 0:00:02]} 60. Kd6 {[%clk 0:00:22]}  Rd3+ {[%clk 0:00:02]} 61. Ke5 {[%clk 0:00:22]}  Rc3 {[%clk 0:00:03]} 62. Kf6 {[%clk 0:00:23]}  Rf3+ {[%clk 0:00:03]} 63. Ke5 {[%clk 0:00:23]}  Re3+ {[%clk 0:00:04]} 64. Kd5 {[%clk 0:00:22]}  a5 {[%clk 0:00:04]} 65. Rb8+ {[%clk 0:00:21]}  Ke7 {[%clk 0:00:04]} 66. Rb7+ {[%clk 0:00:22]}  Kf6 {[%clk 0:00:05]} 67. Rf7+ {[%clk 0:00:22]}  Kg6 {[%clk 0:00:06]} 68. Rb7 {[%clk 0:00:18]}  a4 {[%clk 0:00:05]} 69. Kd6 {[%clk 0:00:19]}  Kf6 {[%clk 0:00:05]} 70. Rf7+ {[%clk 0:00:18]}  Kg6 {[%clk 0:00:05]} 71. Rb7 {[%clk 0:00:18]}  Re2 {[%clk 0:00:06]} 72. e7 {[%clk 0:00:18]}  Kf7 {[%clk 0:00:07]} 73. Rb4 {[%clk 0:00:15]}  Re6+ {[%clk 0:00:05]} 74. Kd5 {[%clk 0:00:15]}  Rxe7 {[%clk 0:00:05]} 75. Rxa4 {[%clk 0:00:15]}  Rb7 {[%clk 0:00:05]} 76. Ra1 {[%clk 0:00:15]}  b2 {[%clk 0:00:04]} 77. Rb1 {[%clk 0:00:15]}  Kf6 {[%clk 0:00:05]} 78. Kc4 {[%clk 0:00:16]}  Ke5 {[%clk 0:00:05]} 79. Kc3 {[%clk 0:00:16]}  Ke4 {[%clk 0:00:05]} 80. Rxb2 {[%clk 0:00:17]}  Rxb2 {[%clk 0:00:05]} 81. Kxb2 {[%clk 0:00:18]} 1/2-1/2


[Site "https://www.chess.com"]

[Event "Titled Tuesday Blitz February 15 Early 2022"]
[White "Jaferian, Koosha"]
[Black "Fajdetic, Hrvoje"]
[WhiteFideId "12507440"]
[BlackFideId "14501945"]
[WhiteElo "2027"]
[BlackElo "2140"]
[Result "1-0"]
[Round "08"]
[TimeControl "180+1"]
[Date "2022.02.15"]
[WhiteClock "0:01:08"]
[BlackClock "0:00:03"]

1. Nf3 {[%clk 0:03:00]}  f5 {[%clk 0:02:57]} 2. b3 {[%clk 0:02:59]}  Nf6 {[%clk 0:02:57]} 3. Bb2 {[%clk 0:03:00]}  e6 {[%clk 0:02:55]} 4. g3 {[%clk 0:02:59]}  Be7 {[%clk 0:02:56]} 5. Bg2 {[%clk 0:02:59]}  O-O {[%clk 0:02:56]} 6. O-O {[%clk 0:03:00]}  d6 {[%clk 0:02:56]} 7. d4 {[%clk 0:03:00]}  Nc6 {[%clk 0:02:56]} 8. c4 {[%clk 0:03:00]}  a5 {[%clk 0:02:55]} 9. Nc3 {[%clk 0:02:59]}  Ne4 {[%clk 0:02:48]} 10. Nxe4 {[%clk 0:02:57]}  fxe4 {[%clk 0:02:49]} 11. Nd2 {[%clk 0:02:57]}  d5 {[%clk 0:02:49]} 12. f3 {[%clk 0:02:58]}  e3 {[%clk 0:02:33]} 13. Nb1 {[%clk 0:02:58]}  e5 {[%clk 0:02:33]} 14. cxd5 {[%clk 0:02:43]}  Nxd4 {[%clk 0:02:31]} 15. Nc3 {[%clk 0:02:35]}  Bc5 {[%clk 0:02:12]} 16. Kh1 {[%clk 0:02:29]}  Qe8 {[%clk 0:01:43]} 17. Ne4 {[%clk 0:02:26]}  Bb6 {[%clk 0:01:36]} 18. Ba3 {[%clk 0:02:18]}  Rf5 {[%clk 0:01:25]} 19. Qd3 {[%clk 0:02:11]}  Rh5 {[%clk 0:01:19]} 20. Bc1 {[%clk 0:02:00]}  Bd7 {[%clk 0:01:01]} 21. a4 {[%clk 0:01:48]}  Bf5 {[%clk 0:00:13]} 22. Bxe3 {[%clk 0:01:38]}  Qg6 {[%clk 0:00:03]} 23. g4 {[%clk 0:01:20]}  Bxe4 {[%clk 0:00:03]} 24. gxh5 {[%clk 0:01:20]}  Bxd3 {[%clk 0:00:03]} 25. hxg6 {[%clk 0:01:21]}  Bxg6 {[%clk 0:00:03]} 26. Bxd4 {[%clk 0:01:15]}  Bxd4 {[%clk 0:00:04]} 27. Rac1 {[%clk 0:01:15]}  c6 {[%clk 0:00:02]} 28. dxc6 {[%clk 0:01:14]}  bxc6 {[%clk 0:00:03]} 29. Rxc6 {[%clk 0:01:15]}  Rb8 {[%clk 0:00:04]} 30. f4 {[%clk 0:01:07]}  Rxb3 {[%clk 0:00:03]} 31. fxe5 {[%clk 0:01:08]} 1-0


[Site "https://www.chess.com"]

[Event "Titled Tuesday Blitz February 15 Early 2022"]
[White "Kamsky, Gata"]
[Black "De Silva, L M S T"]
[WhiteFideId "2000024"]
[BlackFideId "9953698"]
[WhiteElo "2645"]
[BlackElo "1631"]
[Result "1-0"]
[Round "08"]
[TimeControl "180+1"]
[Date "2022.02.15"]
[WhiteClock "0:00:08"]
[BlackClock "0:00:09"]

1. e4 {[%clk 0:03:00]}  e5 {[%clk 0:02:59]} 2. Nf3 {[%clk 0:03:00]}  Nc6 {[%clk 0:02:59]} 3. Bb5 {[%clk 0:03:00]}  a6 {[%clk 0:03:00]} 4. Ba4 {[%clk 0:03:00]}  Nf6 {[%clk 0:03:00]} 5. O-O {[%clk 0:02:59]}  b5 {[%clk 0:03:00]} 6. Bb3 {[%clk 0:02:58]}  Bb7 {[%clk 0:03:01]} 7. Re1 {[%clk 0:02:57]}  Bc5 {[%clk 0:03:01]} 8. c3 {[%clk 0:02:56]}  d6 {[%clk 0:03:00]} 9. d4 {[%clk 0:02:56]}  Bb6 {[%clk 0:03:01]} 10. h3 {[%clk 0:02:54]}  h6 {[%clk 0:03:01]} 11. Be3 {[%clk 0:02:53]}  O-O {[%clk 0:02:51]} 12. Nbd2 {[%clk 0:02:50]}  Re8 {[%clk 0:02:48]} 13. d5 {[%clk 0:02:44]}  Ne7 {[%clk 0:02:48]} 14. Bxb6 {[%clk 0:02:43]}  cxb6 {[%clk 0:02:49]} 15. Nf1 {[%clk 0:02:37]}  Ng6 {[%clk 0:02:48]} 16. g3 {[%clk 0:02:33]}  Qd7 {[%clk 0:02:46]} 17. Kh2 {[%clk 0:02:29]}  Nh7 {[%clk 0:02:45]} 18. Ne3 {[%clk 0:02:26]}  Rac8 {[%clk 0:02:32]} 19. Bc2 {[%clk 0:02:24]}  Rc5 {[%clk 0:02:30]} 20. h4 {[%clk 0:02:19]}  Nf6 {[%clk 0:02:27]} 21. Nd2 {[%clk 0:02:04]}  Bc8 {[%clk 0:02:23]} 22. Qf3 {[%clk 0:02:02]}  a5 {[%clk 0:01:54]} 23. Bd3 {[%clk 0:02:00]}  Rf8 {[%clk 0:01:13]} 24. a3 {[%clk 0:01:55]}  Rc7 {[%clk 0:01:03]} 25. Kg1 {[%clk 0:01:47]}  Ne7 {[%clk 0:00:59]} 26. Qe2 {[%clk 0:01:42]}  Nh7 {[%clk 0:00:58]} 27. Bxb5 {[%clk 0:01:40]}  Qd8 {[%clk 0:00:58]} 28. Bd3 {[%clk 0:01:29]}  g6 {[%clk 0:00:58]} 29. h5 {[%clk 0:01:08]}  Nf6 {[%clk 0:00:25]} 30. hxg6 {[%clk 0:01:04]}  fxg6 {[%clk 0:00:26]} 31. f3 {[%clk 0:01:01]}  Nh5 {[%clk 0:00:25]} 32. Qh2 {[%clk 0:00:56]}  Kg7 {[%clk 0:00:24]} 33. Re2 {[%clk 0:00:53]}  Ng8 {[%clk 0:00:24]} 34. Rf2 {[%clk 0:00:47]}  Rcf7 {[%clk 0:00:21]} 35. Be2 {[%clk 0:00:45]}  Qg5 {[%clk 0:00:20]} 36. Ndf1 {[%clk 0:00:43]}  Nf4 {[%clk 0:00:20]} 37. Bd1 {[%clk 0:00:22]}  Nh3+ {[%clk 0:00:20]} 38. Kg2 {[%clk 0:00:21]}  Nxf2 {[%clk 0:00:20]} 39. Kxf2 {[%clk 0:00:21]}  Bg4 {[%clk 0:00:17]} 40. Nd2 {[%clk 0:00:19]}  Bd7 {[%clk 0:00:16]} 41. Qh4 {[%clk 0:00:19]}  Qxh4 {[%clk 0:00:15]} 42. gxh4 {[%clk 0:00:19]}  Nf6 {[%clk 0:00:16]} 43. Be2 {[%clk 0:00:18]}  b5 {[%clk 0:00:16]} 44. Rg1 {[%clk 0:00:18]}  Nh5 {[%clk 0:00:16]} 45. Bf1 {[%clk 0:00:17]}  Nf4 {[%clk 0:00:16]} 46. Nb3 {[%clk 0:00:17]}  a4 {[%clk 0:00:16]} 47. Nd2 {[%clk 0:00:16]}  Kh7 {[%clk 0:00:16]} 48. Nc2 {[%clk 0:00:16]}  Rg7 {[%clk 0:00:15]} 49. Nb4 {[%clk 0:00:15]}  g5 {[%clk 0:00:15]} 50. hxg5 {[%clk 0:00:16]}  hxg5 {[%clk 0:00:16]} 51. Ke1 {[%clk 0:00:12]}  g4 {[%clk 0:00:14]} 52. fxg4 {[%clk 0:00:12]}  Bxg4 {[%clk 0:00:15]} 53. Bxb5 {[%clk 0:00:10]}  Bh5 {[%clk 0:00:12]} 54. Rxg7+ {[%clk 0:00:10]}  Kxg7 {[%clk 0:00:13]} 55. Bf1 {[%clk 0:00:09]}  Rb8 {[%clk 0:00:11]} 56. Nc4 {[%clk 0:00:09]}  Rd8 {[%clk 0:00:05]} 57. Nc6 {[%clk 0:00:10]}  Rd7 {[%clk 0:00:06]} 58. Nb6 {[%clk 0:00:09]}  Rb7 {[%clk 0:00:06]} 59. Nxa4 {[%clk 0:00:09]}  Kf6 {[%clk 0:00:06]} 60. b4 {[%clk 0:00:08]}  Rg7 {[%clk 0:00:06]} 61. b5 {[%clk 0:00:07]}  Rg1 {[%clk 0:00:07]} 62. Kf2 {[%clk 0:00:07]}  Rh1 {[%clk 0:00:04]} 63. b6 {[%clk 0:00:07]}  Rh2+ {[%clk 0:00:04]} 64. Kg3 {[%clk 0:00:07]}  Rd2 {[%clk 0:00:04]} 65. b7 {[%clk 0:00:07]}  Kg5 {[%clk 0:00:03]} 66. b8=Q {[%clk 0:00:06]}  Bg6 {[%clk 0:00:03]} 67. Qd8+ {[%clk 0:00:06]}  Kh6 {[%clk 0:00:04]} 68. Qxd6 {[%clk 0:00:05]}  Kg5 {[%clk 0:00:02]} 69. Nxe5 {[%clk 0:00:05]}  Nh5+ {[%clk 0:00:02]} 70. Kf3 {[%clk 0:00:05]}  Kh4 {[%clk 0:00:02]} 71. Nxg6+ {[%clk 0:00:04]}  Kg5 {[%clk 0:00:03]} 72. Qe5+ {[%clk 0:00:04]}  Kxg6 {[%clk 0:00:03]} 73. Qf5+ {[%clk 0:00:04]}  Kh6 {[%clk 0:00:03]} 74. Ke3 {[%clk 0:00:05]}  Rh2 {[%clk 0:00:03]} 75. Be2 {[%clk 0:00:04]}  Ng7 {[%clk 0:00:02]} 76. Qf6+ {[%clk 0:00:04]}  Kh7 {[%clk 0:00:03]} 77. Bg4 {[%clk 0:00:05]}  Rh6 {[%clk 0:00:03]} 78. Bf5+ {[%clk 0:00:05]}  Nxf5+ {[%clk 0:00:03]} 79. Qxf5+ {[%clk 0:00:05]}  Kg7 {[%clk 0:00:04]} 80. e5 {[%clk 0:00:05]}  Rg6 {[%clk 0:00:04]} 81. c4 {[%clk 0:00:05]}  Kh7 {[%clk 0:00:03]} 82. Nc5 {[%clk 0:00:05]}  Kg7 {[%clk 0:00:04]} 83. a4 {[%clk 0:00:05]}  Kh6 {[%clk 0:00:04]} 84. a5 {[%clk 0:00:06]}  Rg7 {[%clk 0:00:04]} 85. Qf6+ {[%clk 0:00:06]}  Rg6 {[%clk 0:00:05]} 86. Qxg6+ {[%clk 0:00:06]}  Kxg6 {[%clk 0:00:04]} 87. a6 {[%clk 0:00:07]}  Kg7 {[%clk 0:00:05]} 88. Kd4 {[%clk 0:00:07]}  Kg6 {[%clk 0:00:06]} 89. a7 {[%clk 0:00:07]}  Kf5 {[%clk 0:00:07]} 90. a8=Q {[%clk 0:00:07]}  Kg6 {[%clk 0:00:08]} 91. d6 {[%clk 0:00:07]}  Kh7 {[%clk 0:00:09]} 92. d7 {[%clk 0:00:08]} 1-0


[Site "https://www.chess.com"]